bitfinex-derivatives/quotes_BTCF0:USTF0_20251207
["timestamp","ask_amount","ask_price","bid_price","bid_amount"]
[1765148000106,0.00016698,89833.0,89832.0,0.05914]
[1765148000312,0.0111284,89853.0,89824.0,0.01704]
[1765148000313,0.1328679,89860.0,89827.0,0.012]
[1765148000506,0.1328679,89860.0,89840.0,0.0281699]
[1765148000703,0.1328679,89860.0,89846.0,0.0111292]
[1765148000998,0.1328679,89860.0,89840.0,0.01704]
[1765148000999,0.1328679,89860.0,89845.0,0.0111293]
[1765148001203,0.00013021,89859.0,89845.0,0.0111293]
[1765148002313,0.00813021,89859.0,89845.0,0.0121293]
[1765148002800,0.00813021,89859.0,89858.0,0.02991]
[1765148003012,0.03558021,89859.0,89858.0,0.05914]
[1765148003199,0.05676,89846.0,89845.0,0.005]
[1765148003412,0.01632,89840.0,89810.0,0.01103388]
[1765148003608,0.05676,89811.0,89810.0,0.01103388]
[1765148003914,0.05689067,89811.0,89799.0,0.0111349]
[1765148004107,0.1328679,89810.0,89799.0,0.0111349]
[1765148004505,0.00013067,89811.0,89799.0,0.0111349]
[1765148004705,0.00013067,89811.0,89804.0,0.0111344]
[1765148004910,0.00013067,89811.0,89810.0,0.003]
[1765148006311,0.05689067,89811.0,89810.0,0.003]
[1765148006612,0.05689067,89811.0,89806.0,0.00027838]
[1765148006613,0.05676,89807.0,89806.0,0.00027838]
[1765148006911,0.05676,89800.0,89799.0,0.004]
[1765148007415,0.05676,89797.0,89796.0,0.00028966]
[1765148008910,0.001,89800.0,89799.0,0.05914]
[1765148009111,0.1328679,89820.0,89799.0,0.05914]
[1765148009312,0.1328679,89820.0,89810.0,0.02991]
[1765148009516,0.1328679,89820.0,89810.0,0.05914]
[1765148009712,0.1328679,89830.0,89812.0,0.05914]
[1765148009914,0.09020417,89858.0,89808.0,0.01704]
[1765148009915,0.09020417,89858.0,89813.0,0.0556661]
[1765148010107,0.0111249,89882.0,89813.0,0.0556661]
[1765148010108,0.1328679,89850.0,89843.0,0.0111295]
[1765148010314,0.1328679,89850.0,89849.0,0.05914]
[1765148010524,0.1328679,89859.0,89849.0,0.05914]
[1765148010715,0.1328679,89859.0,89840.0,0.01704]
[1765148010716,0.1328679,89859.0,89850.0,0.0111287]
[1765148011215,0.1328679,89859.0,89846.0,0.00016698]
[1765148011414,0.01,89850.0,89849.0,0.0121288]
[1765148011712,0.01,89850.0,89849.0,0.0712688]
[1765148013410,0.1328679,89860.0,89846.0,0.00044524]
[1765148013611,0.008,89859.0,89852.0,0.0111284]
[1765148014007,0.008,89859.0,89858.0,0.02991]
[1765148014213,0.00016698,89863.0,89858.0,0.05914]
[1765148014420,0.00016698,89863.0,89862.0,0.02991]
[1765148015918,0.00016698,89863.0,89862.0,0.05914]
[1765148016620,0.01216698,89863.0,89862.0,0.06014]
[1765148017320,0.00016698,89863.0,89862.0,0.05914]
[1765148017721,0.1328679,89900.0,89878.0,0.0111252]
[1765148017924,0.0111228,89898.0,89880.0,0.01704]
[1765148018819,0.01128969,89898.0,89880.0,0.01720689]
[1765148019125,0.1328679,89890.0,89880.0,0.01129179]
[1765148019422,0.1328679,89890.0,89880.0,0.02833179]
[1765148020020,0.05676,89881.0,89880.0,0.00016689]
[1765148020416,0.05676,89881.0,89880.0,0.00116689]
[1765148021127,0.06676,89881.0,89880.0,0.00116689]
[1765148021518,0.00911,89880.0,89850.0,0.01704]
[1765148021825,0.011128,89856.0,89844.0,0.0111294]
[1765148022126,0.1328679,89860.0,89847.0,0.0111291]
[1765148022327,0.1328679,89860.0,89851.0,0.0111286]
[1765148022727,0.0111272,89862.0,89851.0,0.0111286]
[1765148023022,0.00016689,89864.0,89860.0,0.0111274]
[1765148023222,0.00016689,89864.0,89863.0,0.0579]
[1765148024728,0.00016689,89864.0,89863.0,0.0779]
[1765148026230,0.1328679,89880.0,89879.0,0.0402251]
[1765148026429,0.1328679,89889.0,89879.0,0.0402251]
[1765148027529,0.07256,89880.0,89879.0,0.005]
[1765148028121,0.05712,89876.0,89875.0,0.00016689]
[1765148029723,0.06012,89876.0,89875.0,0.00016689]
[1765148030222,0.06012,89876.0,89875.0,0.01516689]
[1765148030423,0.05712,89876.0,89875.0,0.01516689]
[1765148030623,0.06012,89876.0,89875.0,0.01516689]
[1765148032929,0.05712,89862.0,89857.0,0.0111278]
[1765148033125,0.05712,89861.0,89860.0,0.0111274]
[1765148033327,0.1328679,89864.0,89863.0,0.0579]
[1765148033527,0.0111266,89868.0,89864.0,0.011127]
[1765148034427,0.05712,89865.0,89860.0,0.021]
[1765148034632,0.05712,89865.0,89861.0,0.0111274]
[1765148035132,0.068247,89865.0,89861.0,0.0111274]
[1765148035726,0.068247,89865.0,89864.0,0.019]
[1765148036736,0.001,89865.0,89864.0,0.07597]
[1765148037130,0.05772,89865.0,89864.0,0.019]
[1765148037331,0.05672,89858.0,89857.0,0.00016689]
[1765148037525,0.05672,89858.0,89857.0,0.03900479]
[1765148038727,0.05672,89858.0,89857.0,0.07587479]
[1765148039236,0.08075347,89858.0,89857.0,0.07587479]
[1765148040832,0.02403347,89858.0,89857.0,0.07587479]
[1765148041035,0.08075347,89858.0,89857.0,0.02029479]
[1765148041527,0.08075347,89858.0,89857.0,0.04800479]
[1765148041934,0.08075347,89858.0,89857.0,0.07587479]
[1765148042328,0.02403347,89858.0,89857.0,0.07587479]
[1765148042529,0.08075347,89858.0,89857.0,0.07587479]
[1765148044338,0.08075347,89858.0,89857.0,0.06687479]
[1765148044537,0.08075347,89858.0,89857.0,0.07587479]
[1765148044928,0.08075347,89858.0,89857.0,0.06687479]
[1765148045129,0.08075347,89858.0,89857.0,0.00916689]
[1765148045839,0.08075347,89858.0,89857.0,0.06474689]
[1765148046031,0.05183347,89858.0,89857.0,0.06474689]
[1765148046631,0.05183347,89858.0,89857.0,0.06274689]
[1765148047037,0.02403347,89858.0,89857.0,0.05574689]
[1765148047341,0.05672,89873.0,89872.0,0.02771]
[1765148047540,0.08076822,89873.0,89872.0,0.02771]
[1765148047742,0.08076822,89873.0,89872.0,0.05558]
[1765148048144,0.02404822,89873.0,89872.0,0.05558]
[1765148048742,0.02604822,89873.0,89872.0,0.05558]
[1765148049142,0.0278,89893.0,89892.0,0.07294]
[1765148050646,0.0368,89893.0,89892.0,0.07294]
[1765148051144,0.02,89893.0,89892.0,0.07394]
[1765148051828,0.0478,89893.0,89892.0,0.07394]
[1765148052033,0.0775,89893.0,89892.0,0.001]
[1765148059350,0.0775,89893.0,89847.0,0.05822006]
[1765148059351,0.05952,89851.0,89847.0,0.05822006]
[1765148059644,0.01287,89870.0,89846.0,0.00027826]
[1765148059645,0.0706491,89847.0,89846.0,0.00027826]
[1765148060148,0.02982,89832.0,89831.0,0.040321]
[1765148060541,0.05952,89832.0,89831.0,0.040321]
[1765148060942,0.05952,89832.0,89831.0,0.069601]
[1765148061348,0.0111303,89838.0,89826.0,0.0111317]
[1765148061550,0.05952,89824.0,89823.0,0.00016689]
[1765148062048,0.05952,89810.0,89809.0,0.05822006]
[1765148062249,0.05952,89810.0,89782.0,0.13584682]
[1765148062250,0.05952,89797.0,89778.0,0.05822006]
[1765148062449,0.05952,89797.0,89771.0,0.01120996]
[1765148063067,0.05952,89797.0,89788.0,0.00016698]
[1765148063570,0.05952,89797.0,89796.0,0.01312268]
[1765148063966,0.05952,89797.0,89796.0,0.01212268]
[1765148064765,0.0706563,89789.0,89788.0,0.00016698]
[1765148065070,0.0111376,89779.0,89767.0,0.011139]
[1765148065263,0.07914825,89776.0,89767.0,0.011139]
[1765148065659,0.07914825,89776.0,89775.0,0.05847]
[1765148065860,0.07914825,89785.0,89784.0,0.05847]
[1765148066071,0.07914825,89800.0,89793.0,0.05847]
[1765148066263,0.00011844,89799.0,89793.0,0.05847]
[1765148067374,0.00011844,89799.0,89798.0,0.05847]
[1765148068474,0.00011844,89799.0,89798.0,0.06047]
[1765148068876,0.00111844,89799.0,89798.0,0.07247]
[1765148071879,0.00111844,89799.0,89788.0,0.00016708]
[1765148071880,0.0622163,89789.0,89788.0,0.00016708]
[1765148072172,0.05076,89767.0,89758.0,0.01084988]
[1765148072365,0.0619007,89753.0,89752.0,0.0023]
[1765148072565,0.0111414,89748.0,89725.0,0.0111442]
[1765148072765,0.07914825,89736.0,89725.0,0.0111442]
[1765148072964,0.07914825,89736.0,89701.0,0.0111471]
[1765148072965,0.00014049,89735.0,89700.0,0.07914825]
[1765148073176,0.0111432,89734.0,89715.0,0.01093993]
[1765148073373,0.07914825,89731.0,89700.0,0.07914825]
[1765148073770,0.05076,89727.0,89726.0,0.003]
[1765148074477,0.0111432,89734.0,89726.0,0.03219]
[1765148074673,0.0111432,89734.0,89726.0,0.02919]
[1765148074971,0.002,89727.0,89726.0,0.04519]
[1765148075174,0.05283802,89727.0,89726.0,0.016]
[1765148075566,0.05076,89722.0,89721.0,0.0031289]
[1765148076176,0.05076,89722.0,89721.0,0.0001289]
[1765148076970,0.05076,89722.0,89721.0,0.0031289]
[1765148077170,0.05076,89709.0,89684.0,0.01798]
[1765148077371,0.07914825,89710.0,89709.0,0.02919]
[1765148077575,0.00016718,89712.0,89709.0,0.02919]
[1765148077975,0.00016718,89712.0,89711.0,0.02919]
[1765148078179,0.00030041,89712.0,89711.0,0.05847]
[1765148078577,0.00013323,89712.0,89711.0,0.05847]
[1765148078781,0.07914825,89730.0,89729.0,0.05847]
[1765148078980,0.07914825,89739.0,89731.0,0.0111435]
[1765148079181,0.10452825,89739.0,89738.0,0.02919]
[1765148079384,0.0619025,89739.0,89730.0,0.0291235]
[1765148079886,0.02538,89731.0,89730.0,0.01798]
[1765148080180,0.02538,89731.0,89726.0,0.00016718]
[1765148080181,0.05076,89730.0,89729.0,0.001]
[1765148080881,0.05076,89730.0,89726.0,0.00016718]
[1765148080882,0.05076,89727.0,89726.0,0.00016718]
[1765148081387,0.0111431,89735.0,89729.0,0.02919]
[1765148081681,0.0365235,89731.0,89730.0,0.02919]
[1765148081871,0.02538,89730.0,89729.0,0.008]
[1765148082071,0.02538,89727.0,89726.0,0.01814718]
[1765148082276,0.05290264,89727.0,89726.0,0.00916718]
[1765148082480,0.05076,89710.0,89704.0,0.0111468]
[1765148082676,9.744e-05,89709.0,89704.0,0.0111468]
[1765148083482,0.06200364,89709.0,89695.0,0.0111479]
[1765148083879,0.05076,89705.0,89704.0,0.003]
[1765148084274,0.05076,89687.0,89678.0,0.01115]
[1765148084474,0.05085807,89687.0,89670.0,0.01787]
[1765148085482,0.05085807,89687.0,89672.0,0.0111508]
[1765148085681,9.807e-05,89687.0,89686.0,0.05731875]
[1765148085984,0.00709807,89687.0,89686.0,0.05931875]
[1765148086180,0.00909807,89687.0,89686.0,0.05931875]
[1765148086487,0.05985807,89687.0,89686.0,0.00227875]
[1765148086682,0.03447807,89687.0,89686.0,0.02941875]
[1765148087379,0.00016718,89695.0,89694.0,0.0681881]
[1765148088372,0.00021756,89695.0,89694.0,0.0681881]
[1765148088579,0.02821756,89695.0,89694.0,0.0721881]
[1765148089087,0.05359756,89695.0,89694.0,0.0422881]
[1765148089488,0.02821756,89695.0,89694.0,0.0721881]
[1765148089674,0.08897756,89695.0,89694.0,0.005]
[1765148090988,0.03821756,89695.0,89694.0,0.06204]
[1765148092390,0.08897756,89695.0,89694.0,0.005]
[1765148092590,0.03821756,89695.0,89694.0,0.06204]
[1765148093877,0.08897756,89695.0,89694.0,0.005]
[1765148095893,0.05076,89669.0,89662.0,0.00012226]
[1765148096194,0.14970711,89695.0,89662.0,0.01127436]
[1765148096195,0.02538,89663.0,89662.0,0.01127436]
[1765148096393,0.02538,89663.0,89662.0,0.03841436]
[1765148096789,5.038e-05,89668.0,89662.0,0.03841436]
[1765148096986,5.038e-05,89668.0,89665.0,0.0111516]
[1765148097386,5.038e-05,89668.0,89662.0,0.01012226]
[1765148097694,5.038e-05,89668.0,89663.0,0.0111519]
[1765148097895,5.038e-05,89668.0,89667.0,0.05751]
[1765148098584,0.00016729,89674.0,89673.0,0.05751]
[1765148099383,0.07914825,89680.0,89679.0,0.0686599]
[1765148099597,0.07914825,89689.0,89688.0,0.05751]
[1765148099796,0.07914825,89700.0,89699.0,0.0686575]
[1765148099986,0.05880439,89729.0,89699.0,0.0686575]
[1765148099987,0.07914825,89709.0,89699.0,0.0686575]
[1765148100301,0.07914825,89709.0,89708.0,0.05751]
[1765148100593,0.00016729,89713.0,89708.0,0.05751]
[1765148100794,0.00016729,89713.0,89712.0,0.04555]
[1765148100991,0.00016729,89713.0,89712.0,0.07432]
[1765148102093,0.09992729,89713.0,89712.0,0.001]
[1765148102293,0.0619078,89696.0,89695.0,0.00016729]
[1765148102496,0.0111495,89683.0,89671.0,0.0111508]
[1765148102793,0.07914825,89705.0,89670.0,0.01681]
[1765148102794,0.07914825,89681.0,89670.0,0.01681]
[1765148103196,0.0111499,89680.0,89670.0,0.027961]
[1765148103396,0.07914825,89681.0,89670.0,0.027961]
[1765148103790,0.10452825,89681.0,89670.0,0.01681]
[1765148103990,0.07914825,89681.0,89680.0,0.05751]
[1765148104200,0.00016729,89684.0,89680.0,0.05751]
[1765148104392,0.001,89683.0,89680.0,0.05751]
[1765148104702,0.012,89681.0,89680.0,0.05751]
[1765148105200,0.0365297,89681.0,89671.0,0.005]
[1765148105497,0.14105795,89681.0,89680.0,0.003]
[1765148105701,0.0619097,89681.0,89680.0,0.003]
[1765148105898,0.0619097,89681.0,89670.0,0.01681]
[1765148106103,0.0619097,89681.0,89680.0,0.003]
[1765148106104,0.0749097,89681.0,89680.0,0.003]
[1765148106292,0.05076,89663.0,89662.0,0.00012226]
[1765148107599,0.09029915,89672.0,89662.0,0.02886226]
[1765148107798,0.07914825,89672.0,89662.0,0.02886226]
[1765148107999,0.013,89663.0,89662.0,0.06063226]
[1765148108202,0.013,89663.0,89662.0,0.06163226]
[1765148108803,0.013,89663.0,89662.0,0.06063226]
[1765148109005,0.06376,89663.0,89662.0,0.00412226]
[1765148110902,0.013,89663.0,89662.0,0.06163226]
[1765148116292,0.06376,89663.0,89662.0,0.00412226]
[1765148116693,0.08748924,89663.0,89662.0,0.00412226]
[1765148116894,0.05076,89647.0,89646.0,0.00027888]
[1765148117093,0.05076,89647.0,89619.0,0.05822006]
[1765148117406,0.00016729,89655.0,89637.0,0.02962]
[1765148117407,0.07914825,89638.0,89637.0,0.02962]
[1765148117607,0.07914825,89647.0,89637.0,0.02962]
[1765148117807,0.0001004,89646.0,89637.0,0.02962]
[1765148118011,0.0001004,89646.0,89623.0,0.0111569]
[1765148118012,0.05076,89638.0,89623.0,0.0111569]
[1765148118312,0.0111546,89642.0,89598.0,0.09703344]
[1765148118313,0.05088226,89637.0,89636.0,0.02962]
[1765148119399,0.05088226,89637.0,89594.0,0.1803628]
[1765148119604,0.00016729,89624.0,89623.0,0.05888]
[1765148120510,0.05632,89623.0,89622.0,0.011157]
[1765148120702,0.00013142,89623.0,89622.0,0.070037]
[1765148122104,0.00013142,89623.0,89600.0,0.0145]
[1765148122105,0.05632,89616.0,89600.0,0.0145]
[1765148122404,0.01667,89622.0,89601.0,0.0111596]
[1765148122405,0.13343361,89610.0,89601.0,0.0111596]
[1765148122601,0.00013037,89609.0,89601.0,0.0111596]
[1765148122801,0.00013037,89609.0,89607.0,0.0111588]
[1765148123206,0.00013037,89609.0,89608.0,0.02962]
[1765148123410,0.00013037,89609.0,89608.0,0.05888]
[1765148123703,0.05632,89608.0,89607.0,0.0111588]
[1765148123912,0.00613037,89609.0,89608.0,0.05888]
[1765148124208,0.06245037,89609.0,89608.0,0.05888]
[1765148124400,0.06245037,89609.0,89601.0,0.001]
[1765148124401,0.05632,89602.0,89601.0,0.001]
[1765148125205,0.05632,89594.0,89593.0,0.0111606]
[1765148125408,0.01354,89544.0,89530.0,0.19508204]
[1765148125613,0.05632,89527.0,89521.0,0.0111696]
[1765148126505,0.0564273,89527.0,89521.0,0.0111696]
[1765148126714,0.0001073,89527.0,89526.0,0.05915925]
[1765148127100,0.0001073,89527.0,89526.0,0.06015925]
[1765148127306,0.0041073,89527.0,89526.0,0.00127925]
[1765148127506,0.0041073,89527.0,89526.0,0.00327925]
[1765148127901,0.0604273,89527.0,89526.0,0.00327925]
[1765148128801,0.0041073,89527.0,89526.0,0.06215925]
[1765148130511,0.13343361,89540.0,89539.0,0.05888]
[1765148130711,0.00016749,89546.0,89540.0,0.0407872]
[1765148131012,0.00016749,89546.0,89545.0,0.05888]
[1765148131203,0.05648749,89546.0,89540.0,0.0111672]
[1765148131406,0.02751,89534.0,89533.0,0.0111681]
[1765148131611,7.981e-05,89534.0,89533.0,0.0407881]
[1765148131820,7.981e-05,89534.0,89533.0,0.0700481]
[1765148132415,0.02758981,89534.0,89526.0,0.00227925]
[1765148132617,0.02758981,89534.0,89526.0,0.01344825]
[1765148132815,0.06039981,89534.0,89533.0,0.003]
[1765148133221,0.00407981,89534.0,89526.0,0.00027925]
[1765148133406,0.05632,89527.0,89526.0,0.00027925]
[1765148133820,0.05632,89527.0,89526.0,0.00227925]
[1765148134405,0.05632,89527.0,89526.0,0.00027925]
[1765148134620,0.05832,89527.0,89526.0,0.00027925]
[1765148135316,0.05632,89504.0,89492.0,0.0111732]
[1765148135517,0.13343361,89502.0,89486.0,0.01145327]
[1765148135709,0.0111721,89501.0,89486.0,0.00027937]
[1765148135914,0.05632,89487.0,89486.0,0.00027937]
[1765148136224,0.05632,89480.0,89479.0,0.00011153]
[1765148136613,0.05632,89471.0,89457.0,0.0111776]
[1765148137308,0.05632,89471.0,89450.0,0.0111785]
[1765148137710,0.05641252,89471.0,89441.0,0.0105222]
[1765148137916,0.02760252,89471.0,89470.0,0.01003961]
[1765148138116,0.05641252,89471.0,89470.0,0.01003961]
[1765148138320,0.05641252,89471.0,89420.0,0.09242208]
[1765148138321,0.05632,89447.0,89420.0,0.09142209]
[1765148138618,0.05632,89407.0,89376.0,0.01673]
[1765148138919,0.05632,89383.0,89382.0,0.021187]
[1765148139126,0.05640796,89383.0,89382.0,0.01]
[1765148139514,0.05632,89376.0,89375.0,0.00013791]
[1765148139920,0.07299,89376.0,89375.0,0.00013791]
[1765148140220,0.05632,89376.0,89375.0,0.00013791]
[1765148140419,8.796e-05,89383.0,89375.0,0.00013791]
[1765148140718,8.796e-05,89383.0,89382.0,0.05888]
[1765148140922,7e-08,89391.0,89390.0,0.05888]
[1765148141112,7e-08,89391.0,89383.0,0.0111869]
[1765148141113,0.00284,89446.0,89406.0,0.05888]
[1765148141416,0.01667,89433.0,89391.0,0.0111858]
[1765148141614,0.13343361,89410.0,89406.0,0.05888]
[1765148141923,0.0001221,89409.0,89406.0,0.05888]
[1765148142118,0.011174,89486.0,89415.0,0.0559142]
[1765148142319,0.13343361,89460.0,89445.0,0.0111791]
[1765148142517,0.13343361,89470.0,89459.0,0.02768]
[1765148142815,0.13343361,89470.0,89433.0,0.01626]
[1765148142816,0.13343361,89480.0,89460.0,0.11171]
[1765148143015,0.13343361,89480.0,89461.0,0.0111771]
[1765148143222,0.00012401,89479.0,89478.0,0.02768]
[1765148143516,0.00012401,89479.0,89478.0,0.11171]
[1765148143711,0.13343361,89490.0,89489.0,0.02768]
[1765148143911,0.13343361,89500.0,89489.0,0.02768]
[1765148144111,0.00016766,89498.0,89489.0,0.02768]
[1765148144622,0.00012888,89497.0,89489.0,0.02768]
[1765148145013,0.00012888,89497.0,89483.0,0.0111743]
[1765148145014,0.00012888,89497.0,89496.0,0.02768]
[1765148145213,0.00012888,89497.0,89496.0,0.12797]
[1765148145524,0.0111673,89540.0,89498.0,0.0111724]
[1765148145722,0.20904642,89550.0,89498.0,0.0111724]
[1765148145921,0.0111665,89546.0,89498.0,0.0111724]
[1765148146216,0.0734103,89566.0,89496.0,0.01626]
[1765148146417,0.00016756,89540.0,89522.0,0.00016756]
[1765148146611,4.837e-05,89539.0,89522.0,0.00016756]
[1765148147618,0.00016756,89540.0,89452.0,0.01626]
[1765148147619,0.01759,89518.0,89452.0,0.01626]
[1765148147818,0.0111717,89505.0,89462.0,0.0111769]
[1765148148019,4.837e-05,89504.0,89462.0,0.0111769]
[1765148148218,4.837e-05,89504.0,89452.0,0.01626]
[1765148148422,4.837e-05,89504.0,89477.0,0.0111751]
[1765148148620,0.00016756,89499.0,89482.0,0.00016756]
[1765148149724,0.00016756,89499.0,89483.0,0.0111743]
[1765148150717,0.00016756,89499.0,89498.0,0.11171]
[1765148150915,0.00016756,89499.0,89482.0,0.00016756]
[1765148150916,0.01759,89540.0,89502.0,0.01626]
[1765148151128,0.01759,89540.0,89519.0,0.0111698]
[1765148151318,0.01759,89540.0,89502.0,0.01626]
[1765148151319,0.0111651,89557.0,89507.0,0.0558569]
[1765148151625,0.20904642,89560.0,89536.0,0.0111677]
[1765148151829,0.00016756,89557.0,89539.0,0.00016756]
[1765148152835,0.11428,89540.0,89539.0,0.00016756]
[1765148154125,0.13128,89540.0,89539.0,0.00016756]
[1765148157219,0.12028,89540.0,89539.0,0.00016756]
[1765148157419,0.12028,89540.0,89505.0,0.0558581]
[1765148157630,0.12028,89540.0,89490.0,0.01626]
[1765148157631,0.15736,89514.0,89513.0,0.0111706]
[1765148157818,0.15736,89502.0,89501.0,0.0111721]
[1765148158019,0.15736,89495.0,89482.0,0.0111744]
[1765148158215,0.15736,89495.0,89488.0,0.0111737]
[1765148158929,0.00016756,89503.0,89499.0,0.0111723]
[1765148159323,0.00016756,89503.0,89502.0,0.1624]
[1765148160128,0.20904642,89540.0,89519.0,0.0111699]
[1765148160317,0.02728416,89539.0,89524.0,0.0111692]
[1765148160520,0.02728416,89538.0,89524.0,0.0111692]
[1765148160728,0.02728416,89537.0,89524.0,0.0111692]
[1765148160928,0.0111667,89545.0,89524.0,0.0111692]
[1765148161127,0.00016756,89543.0,89526.0,0.00016756]
[1765148161330,0.02730246,89542.0,89526.0,0.00016756]
[1765148161731,0.02730246,89542.0,89527.0,0.0111688]
[1765148162032,0.004,89538.0,89526.0,0.00016756]
[1765148162733,0.004,89538.0,89537.0,0.1735675]
[1765148163122,0.00016756,89543.0,89542.0,0.173567]
[1765148165225,0.004,89543.0,89542.0,0.177567]
[1765148165427,0.20904642,89590.0,89542.0,0.004]
[1765148165633,0.02704526,89584.0,89550.0,0.0111659]
[1765148165836,0.02704526,89583.0,89550.0,0.0111659]
[1765148166029,0.02704526,89582.0,89550.0,0.0111659]
[1765148166329,0.00016756,89575.0,89557.0,0.00016756]
[1765148166527,0.02704526,89574.0,89562.0,0.0111645]
[1765148166727,0.00016756,89575.0,89566.0,0.0111639]
[1765148166929,0.00016756,89575.0,89570.0,0.0111635]
[1765148167435,0.00016756,89575.0,89574.0,0.1624]
[1765148168226,0.00916756,89575.0,89574.0,0.1624]
[1765148169034,0.13361907,89590.0,89570.0,0.003]
[1765148169236,0.13361907,89610.0,89580.0,0.13361907]
[1765148169434,0.02693444,89609.0,89570.0,0.13661907]
[1765148169737,0.13361907,89610.0,89599.0,0.0111599]
[1765148170428,0.02699023,89609.0,89599.0,0.0111599]
[1765148170629,0.02699023,89608.0,89599.0,0.0111599]
[1765148170828,0.02699023,89607.0,89599.0,0.0111599]
[1765148171031,0.02699023,89606.0,89599.0,0.0111599]
[1765148171237,0.02699023,89605.0,89599.0,0.0141599]
[1765148171424,0.02699023,89604.0,89599.0,0.0141599]
[1765148171624,0.02699023,89603.0,89599.0,0.0141599]
[1765148171841,0.02699023,89602.0,89601.0,0.15235]
[1765148172233,0.008,89610.0,89609.0,0.15235]
[1765148172624,0.00016746,89613.0,89612.0,0.15235]
[1765148173136,0.0111542,89645.0,89604.0,0.02407]
[1765148173432,0.13361907,89640.0,89622.0,0.04169]
[1765148174133,0.00010659,89640.0,89639.0,0.07796]
[1765148174526,0.00410659,89640.0,89639.0,0.1635049]
[1765148175039,0.00176284,89640.0,89639.0,0.5635049]
[1765148175231,0.13361907,89670.0,89651.0,0.0111534]
[1765148175534,0.13361907,89660.0,89640.0,0.04571]
[1765148175732,0.13361907,89670.0,89654.0,0.011153]
[1765148176630,0.13361907,89670.0,89653.0,0.00016737]
[1765148176933,0.004,89660.0,89659.0,0.1635024]
[1765148177338,0.004,89670.0,89667.0,0.0111513]
[1765148177737,0.004,89670.0,89669.0,0.07796]
[1765148178139,0.004,89670.0,89662.0,0.011152]
[1765148178346,0.004,89670.0,89654.0,0.028]
[1765148178347,0.15525,89655.0,89654.0,0.028]
[1765148178528,0.0111545,89643.0,89624.0,0.0111567]
[1765148178843,0.13361907,89634.0,89619.0,0.0111574]
[1765148179028,0.13361907,89634.0,89624.0,0.0111567]
[1765148179351,0.13361907,89640.0,89632.0,0.0111557]
[1765148180141,0.003,89634.0,89632.0,0.0111557]
[1765148180534,0.13361907,89640.0,89632.0,0.0111557]
[1765148180839,0.15525,89633.0,89632.0,0.024]
[1765148182640,0.15525,89628.0,89627.0,0.00016737]
[1765148184045,0.15825,89628.0,89627.0,0.01416737]
[1765148184238,0.55825,89628.0,89627.0,0.01416737]
[1765148184437,0.15525,89606.0,89605.0,0.0111591]
[1765148184834,0.0466,89622.0,89605.0,0.0111591]
[1765148185036,0.003,89628.0,89605.0,0.0111591]
[1765148185237,0.003,89628.0,89610.0,0.0111584]
[1765148185438,0.00316737,89628.0,89610.0,0.01132577]
[1765148185940,0.004,89622.0,89610.0,0.01132577]
[1765148186141,0.004,89622.0,89621.0,0.15235]
[1765148186437,0.004,89622.0,89614.0,0.0111579]
[1765148186640,0.00416737,89628.0,89615.0,0.0111579]
[1765148187241,0.003,89622.0,89621.0,0.09296]
[1765148187442,0.003,89622.0,89621.0,0.16735]
[1765148188653,0.00016737,89628.0,89621.0,0.15235]
[1765148188839,0.00316737,89628.0,89621.0,0.15235]
[1765148189039,0.00316737,89628.0,89615.0,0.013]
[1765148189040,0.00316737,89628.0,89627.0,0.15235]
[1765148189350,0.00016737,89628.0,89627.0,0.15235]
[1765148190050,0.00316737,89628.0,89627.0,0.15235]
[1765148191542,0.00316737,89628.0,89627.0,0.16135]
[1765148193050,0.0111544,89644.0,89628.0,0.0111562]
[1765148193251,0.02619332,89643.0,89628.0,0.0111562]
[1765148193459,0.02619332,89642.0,89628.0,0.0111562]
[1765148193653,0.02619332,89641.0,89628.0,0.0111562]
[1765148193950,0.02619332,89640.0,89639.0,0.07796]
[1765148194157,0.02636069,89643.0,89639.0,0.07796]
[1765148194362,0.02619332,89642.0,89639.0,0.07796]
[1765148194545,0.02619332,89642.0,89641.0,0.15235]
[1765148195747,0.02619332,89642.0,89631.0,0.00016737]
[1765148195748,0.19756,89640.0,89631.0,0.00016737]
[1765148196055,0.02619332,89639.0,89631.0,0.00016737]
[1765148196253,0.02619332,89638.0,89637.0,0.15235]
[1765148196552,0.002,89642.0,89638.0,0.011155]
[1765148196752,0.02629225,89641.0,89638.0,0.011155]
[1765148196955,0.07566,89639.0,89633.0,0.0111556]
[1765148197159,0.07566,89639.0,89631.0,0.01116737]
[1765148197160,0.15525,89632.0,89631.0,0.01116737]
[1765148197352,0.18154225,89632.0,89631.0,0.01116737]
[1765148197745,0.10195225,89632.0,89631.0,0.08912737]
[1765148197945,0.18154225,89632.0,89631.0,0.01116737]
[1765148198555,0.18154225,89632.0,89631.0,0.00016737]
[1765148199255,0.02629225,89632.0,89631.0,0.15251737]
[1765148199456,0.003,89632.0,89631.0,0.16351737]
[1765148199656,0.02929225,89632.0,89631.0,0.16351737]
[1765148202344,0.17622225,89632.0,89631.0,0.01116737]
[1765148203458,0.011159,89607.0,89575.0,0.07926459]
[1765148203753,0.0111593,89604.0,89585.0,0.0111615]
[1765148203945,0.02629225,89603.0,89585.0,0.0111615]
[1765148204147,0.02629225,89602.0,89585.0,0.0111615]
[1765148204457,0.02629225,89601.0,89585.0,0.01132887]
[1765148204652,0.00016737,89602.0,89599.0,0.15129]
[1765148204653,0.02629225,89600.0,89599.0,0.15129]
[1765148205852,0.00306458,89600.0,89599.0,0.15129]
[1765148206045,0.01506458,89600.0,89599.0,0.15129]
[1765148206646,0.012,89600.0,89599.0,0.15129]
[1765148206852,0.05999,89627.0,89626.0,0.15129]
[1765148207049,0.05999,89627.0,89614.0,0.011158]
[1765148207050,0.07961206,89630.0,89629.0,0.15129]
[1765148207253,0.05999,89634.0,89629.0,0.15129]
[1765148207450,0.05999,89634.0,89610.0,0.03465]
[1765148207451,0.05999,89643.0,89642.0,0.15129]
[1765148207656,0.05999,89657.0,89653.0,0.07411]
[1765148207868,0.07961206,89660.0,89653.0,0.07411]
[1765148209056,0.10561206,89660.0,89653.0,0.07411]
[1765148209462,0.08861206,89660.0,89653.0,0.07411]
[1765148209657,0.08861206,89660.0,89646.0,0.00016737]
[1765148209658,0.14693,89647.0,89646.0,0.00016737]
[1765148211862,0.15993,89647.0,89646.0,0.00016737]
[1765148212765,0.013,89647.0,89646.0,0.15145737]
[1765148213359,0.15993,89647.0,89646.0,0.00016737]
[1765148214458,0.16493,89647.0,89646.0,0.00016737]
[1765148215556,0.14693,89647.0,89646.0,0.00016737]